fUSD/lending_fUSD_20250620
["ID","MTS","AMOUNT","RATE_DAILY","PERIOD"]
[366664478,1750393852143,-665.92,0.00026999,4]
[366664479,1750393852153,-490.0,0.00026999,4]
[366664480,1750393852163,-490.0,0.00026999,4]
[366664481,1750393852173,-490.0,0.00026999,4]
[366664482,1750393852182,-490.0,0.00026999,4]
[366664483,1750393852197,-490.0,0.00026999,4]
[366664484,1750393852207,-490.0,0.00026999,4]
[366664485,1750393852217,-490.0,0.00026999,4]
[366664486,1750393852226,-492.45368138,0.00026999,4]
[366664487,1750393852236,-490.0,0.00026999,4]
[366664488,1750393852245,-490.0,0.00026999,4]
[366664489,1750393852255,-490.0,0.00026999,4]
[366664490,1750393852265,-490.0,0.00026999,4]
[366664491,1750393852275,-490.0,0.00026999,4]
[366664492,1750393852285,-490.27947995,0.00026999,4]
[366664493,1750393852296,-490.0,0.00026999,4]
[366664494,1750393852305,-490.0,0.00026999,4]
[366664495,1750393852315,-490.0,0.00026999,4]
[366664496,1750393852324,-490.0,0.00026999,4]
[366664497,1750393852334,-490.0,0.00026999,4]
[366664498,1750393852344,-490.0,0.00026999,4]
[366664499,1750393852353,-490.0,0.00026999,4]
[366664500,1750393852363,-490.0,0.00026999,4]
[366664501,1750393852373,-490.0,0.00026999,4]
[366664502,1750393852388,-490.0,0.00026999,4]
[366664503,1750393852399,-490.0,0.00026999,4]
[366664504,1750393852408,-490.0,0.00026999,4]
[366664505,1750393852418,-490.0,0.00026999,4]
[366664506,1750393852430,-490.0,0.00026999,4]
[366664507,1750393852441,-490.0,0.00026999,4]
[366664508,1750393852451,-490.0,0.00026999,4]
[366664509,1750393852463,-490.0,0.00026999,4]
[366664510,1750393852474,-490.0,0.00026999,4]
[366664511,1750393852484,-1004.88,0.00026999,4]
[366664512,1750393852494,-490.0,0.00026999,4]
[366664513,1750393852505,-490.0,0.00026999,4]
[366664514,1750393852515,-490.0,0.00026999,4]
[366664515,1750393852526,-490.0,0.00026999,4]
[366664516,1750393852536,-716.29,0.00026999,4]
[366664517,1750393852558,-789.96,0.00026999,4]
[366664518,1750393852581,-490.0,0.00026999,4]
[366664519,1750393852604,-490.0,0.00026999,4]
[366664520,1750393852638,-725.11,0.00026999,4]
[366664521,1750393852667,-490.0,0.00026999,4]
[366664522,1750393852696,-490.0,0.00026999,4]
[366664523,1750393852721,-490.0,0.00026999,4]
[366664524,1750393852747,-490.0,0.00026999,4]
[366664525,1750393852771,-490.0,0.00026999,4]
[366664526,1750393852794,-490.0,0.00026999,4]
[366664527,1750393852823,-490.0,0.00026999,4]
[366664528,1750393852840,-490.0,0.00026999,4]
[366664529,1750393852863,-490.0,0.00026999,4]
[366664530,1750393852877,-490.0,0.00026999,4]
[366664531,1750393852902,-490.0,0.00026999,4]
[366664532,1750393852917,-490.0,0.00026999,4]
[366664533,1750393852939,-490.0,0.00026999,4]
[366664534,1750393852962,-833.02,0.00026999,4]
[366664535,1750393852986,-490.0,0.00026999,4]
[366664536,1750393853019,-490.0,0.00026999,4]
[366664537,1750393853046,-791.53,0.00026999,4]
[366664538,1750393853074,-590.6,0.00026999,4]
[366664539,1750393853102,-490.0,0.00026999,4]
[366664540,1750393853126,-490.0,0.00026999,4]
[366664541,1750393853151,-490.0,0.00026999,4]
[366664542,1750393853175,-490.0,0.00026999,4]
[366664543,1750393853210,-490.0,0.00026999,4]
[366664544,1750393853231,-809.25,0.00026999,4]
[366664545,1750393853253,-490.0,0.00026999,4]
[366664546,1750393853274,-490.0,0.00026999,4]
[366664547,1750393853294,-490.0,0.00026999,4]
[366664548,1750393853314,-854.6,0.00026999,4]
[366664549,1750393853335,-490.0,0.00026999,4]
[366664550,1750393853357,-490.0,0.00026999,4]
[366664551,1750393853383,-490.0,0.00026999,4]
[366664552,1750393853407,-445.42446334,0.00026999,4]
[366664553,1750393853431,-490.0,0.00026999,4]
[366664554,1750393853455,-490.0,0.00026999,4]
[366664555,1750393853476,-613.47,0.00026999,4]
[366664556,1750393853498,-490.0,0.00026999,4]
[366664557,1750393853519,-490.0,0.00026999,4]
[366664558,1750393853540,-490.0,0.00026999,4]
[366664559,1750393853562,-490.0,0.00026999,4]
[366664560,1750393853582,-490.0,0.00026999,4]
[366664561,1750393853602,-490.0,0.00026999,4]
[366664562,1750393853621,-490.0,0.00026999,4]
[366664563,1750393853641,-490.34,0.00026999,4]
[366664564,1750393853660,-542.38,0.00026999,4]
[366664565,1750393853679,-490.0,0.00026999,4]
[366664566,1750393853698,-670.96,0.00026999,4]
[366664567,1750393853718,-495.68,0.00026999,4]
[366664568,1750393853738,-490.0,0.00026999,4]
[366664569,1750393853758,-490.0,0.00026999,4]
[366664570,1750393853777,-490.0,0.00026999,4]
[366664571,1750393853796,-773.5,0.00026999,4]
[366664572,1750393853815,-490.0,0.00026999,4]
[366664573,1750393853834,-490.0,0.00026999,4]
[366664574,1750393853853,-490.0,0.00026999,4]
[366664575,1750393853872,-490.0,0.00026999,4]
[366664576,1750393853891,-657.68,0.00026999,4]
[366664577,1750393853910,-490.0,0.00026999,4]
[366664578,1750393853929,-1337.12,0.00026999,4]
[366664579,1750393853947,-490.0,0.00026999,4]
[366664580,1750393853964,-498.92,0.00026999,4]
[366664581,1750393853983,-490.0,0.00026999,4]
[366664582,1750393854001,-490.0,0.00026999,4]
[366664583,1750393854021,-300.0,0.00026999,4]
[366664584,1750393854040,-490.0,0.00026999,4]
[366664585,1750393854060,-490.0,0.00026999,4]
[366664586,1750393854078,-750.64,0.00026999,4]
[366664587,1750393854097,-490.0,0.00026999,4]
[366664588,1750393854116,-490.0,0.00026999,4]
[366664589,1750393854134,-490.0,0.00026999,4]
[366664590,1750393854150,-490.0,0.00026999,4]
[366664591,1750393854169,-490.0,0.00026999,4]
[366664592,1750393854188,-697.74,0.00026999,4]
[366664593,1750393854205,-490.0,0.00026999,4]
[366664594,1750393854223,-862.7,0.00026999,4]
[366664595,1750393854241,-1405.98,0.00026999,4]
[366664596,1750393854260,-490.0,0.00026999,4]
[366664597,1750393854279,-490.0,0.00026999,4]
[366664598,1750393854298,-490.0,0.00026999,4]
[366664599,1750393854316,-924.08,0.00026999,4]
[366664600,1750393854335,-344.13609858,0.00026999,4]
[366664601,1750393854353,-490.0,0.00026999,4]
[366664602,1750393854371,-490.0,0.00026999,4]
[366664603,1750393854393,-490.0,0.00026999,4]
[366664604,1750393854412,-536.74,0.00026999,4]
[366664605,1750393854431,-490.0,0.00026999,4]
[366664606,1750393854450,-1591.1,0.00026999,4]
[366664607,1750393854469,-490.0,0.00026999,4]
[366664608,1750393854488,-490.0,0.00026999,4]
[366664609,1750393854508,-490.0,0.00026999,4]
[366664610,1750393854527,-1126.84,0.00026999,4]
[366664611,1750393854546,-490.0,0.00026999,4]
[366664612,1750393854564,-490.0,0.00026999,4]
[366664613,1750393854583,-490.0,0.00026999,4]
[366664614,1750393854601,-1335.6,0.00026999,4]
[366664615,1750393854618,-490.0,0.00026999,4]
[366664616,1750393854637,-490.0,0.00026999,4]
[366664617,1750393854656,-490.0,0.00026999,4]
[366664618,1750393854672,-490.0,0.00026999,4]
[366664619,1750393854692,-1992.84,0.00026999,4]
[366664620,1750393854709,-490.0,0.00026999,4]
[366664621,1750393854727,-652.87,0.00026999,4]
[366664622,1750393854746,-490.0,0.00026999,4]
[366664623,1750393854764,-490.0,0.00026999,4]
[366664624,1750393854783,-490.0,0.00026999,4]
[366664625,1750393854801,-490.0,0.00026999,4]
[366664626,1750393854820,-490.0,0.00026999,4]
[366664627,1750393854839,-1312.81,0.00026999,4]
[366664628,1750393854857,-490.0,0.00026999,4]
[366664629,1750393854876,-490.0,0.00026999,4]
[366664630,1750393854893,-595.37149398,0.00026999,4]
[366664631,1750393854911,-490.0,0.00026999,4]
[366664632,1750393854929,-490.0,0.00026999,4]
[366664633,1750393854947,-490.0,0.00026999,4]
[366664634,1750393854965,-490.0,0.00026999,4]
[366664635,1750393854983,-490.0,0.00026999,4]
[366664636,1750393855001,-490.0,0.00026999,4]
[366664637,1750393855019,-490.0,0.00026999,4]
[366664638,1750393855037,-490.0,0.00026999,4]
[366664639,1750393855049,-828.6,0.00026999,4]
[366664640,1750393855403,-2025.73,0.00026999,4]
[366664641,1750393855447,-490.0,0.00026999,4]
[366664642,1750393855457,-490.0,0.00026999,4]
[366664643,1750393855467,-490.0,0.00026999,4]
[366664644,1750393855477,-490.0,0.00026999,4]
[366664645,1750393855486,-1887.2,0.00026999,4]
[366664646,1750393855496,-490.0,0.00026999,4]
[366664647,1750393855506,-542.14,0.00026999,4]
[366664648,1750393855516,-490.0,0.00026999,4]
[366664649,1750393855526,-356.56438926,0.00026999,4]
[366664650,1750393855537,-490.0,0.00026999,4]
[366664651,1750393855548,-587.52,0.00026999,4]
[366664652,1750393855557,-525.92,0.00026999,4]
[366664653,1750393855568,-490.0,0.00026999,4]
[366664654,1750393855577,-490.0,0.00026999,4]
[366664655,1750393855588,-490.0,0.00026999,4]
[366664656,1750393855598,-490.0,0.00026999,4]
[366664657,1750393855607,-490.0,0.00026999,4]
[366664658,1750393855618,-490.0,0.00026999,4]
[366664659,1750393855627,-490.0,0.00026999,4]
[366664660,1750393855638,-490.0,0.00026999,4]
[366664661,1750393855648,-1833.21,0.00026999,4]
[366664662,1750393855657,-490.0,0.00026999,4]
[366664663,1750393855666,-1364.01,0.00026999,4]
[366664664,1750393855675,-483.0477907,0.00026999,4]
[366664665,1750393855685,-490.0,0.00026999,4]
[366664666,1750393855694,-490.0,0.00026999,4]
[366664667,1750393855703,-1002.68,0.00026999,4]
[366664668,1750393855712,-305.68789583,0.00026999,4]
[366664669,1750393856507,-184.31210417,0.00026999,4]
[366664670,1750393856518,-490.0,0.00026999,4]
[366664671,1750393856528,-490.0,0.00026999,4]
[366664672,1750393856538,-490.0,0.00026999,4]
[366664673,1750393856548,-1593.63,0.00026999,4]
[366664674,1750393856558,-490.0,0.00026999,4]
[366664675,1750393856569,-490.0,0.00026999,4]
[366664676,1750393856579,-490.0,0.00026999,4]
[366664677,1750393856588,-490.0,0.00026999,4]
[366664678,1750393856599,-151.0,0.00026999,7]
[366664679,1750393856609,-490.0,0.00026999,4]
[366664680,1750393856620,-1082.81,0.00026999,4]
[366664681,1750393856630,-520.25623167,0.00026999,4]
[366664682,1750393856640,-490.0,0.00026999,4]
[366664683,1750393856650,-490.0,0.00026999,4]
[366664684,1750393856660,-490.0,0.00026999,4]
[366664685,1750393856670,-500.0,0.00026999,4]
[366664686,1750393856681,-573.24,0.00026999,4]
[366664687,1750393856691,-490.0,0.00026999,4]
[366664688,1750393856702,-490.0,0.00026999,4]
[366664689,1750393856712,-490.0,0.00026999,4]
[366664690,1750393856722,-490.0,0.00026999,4]
[366664691,1750393856732,-490.0,0.00026999,4]
[366664692,1750393856742,-878.55,0.00026999,4]
[366664693,1750393856752,-490.0,0.00026999,4]
[366664694,1750393856762,-490.0,0.00026999,4]
[366664695,1750393856772,-490.0,0.00026999,4]
[366664696,1750393856782,-542.23,0.00026999,4]
[366664697,1750393856791,-789.71,0.00026999,4]
[366664698,1750393856803,-490.0,0.00026999,4]
[366664699,1750393856813,-534.96,0.00026999,4]
[366664700,1750393856823,-151.0,0.00026999,7]
[366664701,1750393856833,-490.0,0.00026999,4]
[366664702,1750393856843,-992.9,0.00026999,4]
[366664703,1750393856854,-490.0,0.00026999,4]
[366664704,1750393856864,-490.0,0.00026999,4]
[366664705,1750393856874,-490.0,0.00026999,4]
[366664706,1750393856885,-500.0,0.00026999,4]
[366664707,1750393856895,-303.87804997,0.00026999,4]
[366664708,1750393856906,-807.07,0.00026999,4]
[366664709,1750393856916,-490.0,0.00026999,4]
[366664710,1750393856926,-401.969105,0.00026999,7]
[366664711,1750393856936,-401.969105,0.00026999,7]
[366664712,1750393856947,-490.0,0.00026999,4]
[366664713,1750393856957,-490.0,0.00026999,4]
[366664714,1750393856966,-490.0,0.00026999,4]
[366664715,1750393856977,-490.0,0.00026999,4]
[366664716,1750393856987,-490.0,0.00026999,4]
[366664717,1750393856997,-490.0,0.00026999,4]
[366664718,1750393857007,-490.0,0.00026999,4]
[366664719,1750393857017,-1715.98,0.00026999,4]
[366664720,1750393857027,-490.0,0.00026999,4]
[366664721,1750393857036,-490.0,0.00026999,4]
[366664722,1750393857045,-490.0,0.00026999,4]
[366664723,1750393857055,-490.0,0.00026999,4]
[366664724,1750393857066,-490.0,0.00026999,4]
[366664725,1750393857076,-911.88,0.00026999,4]
[366664726,1750393857086,-490.41705846,0.00026999,4]
[366664727,1750393857096,-151.0,0.00026999,7]
[366664728,1750393857106,-657.04,0.00026999,4]
[366664729,1750393857115,-490.0,0.00026999,4]
[366664730,1750393857125,-182.230393,0.00026999,7]
[366664731,1750393857136,-490.0,0.00026999,4]
[366664732,1750393857146,-490.0,0.00026999,4]
[366664733,1750393857156,-490.0,0.00026999,4]
[366664734,1750393857166,-490.0,0.00026999,4]
[366664735,1750393857177,-490.0,0.00026999,4]
[366664736,1750393857186,-490.0,0.00026999,4]
[366664737,1750393857196,-1012.68121,0.00026999,7]
[366664738,1750393857205,-83.75502465,0.00026999,4]
[366664739,1750393857249,-378.19882696,0.00026999,4]
[366664740,1750393857578,-490.0,0.00026987,4]
[366664741,1750393857587,-269.45613644,0.00026987,4]
[366664742,1750393857607,-241.73204115,0.00026987,4]
[366664743,1750393857617,-490.0,0.00026988,4]
[366664744,1750393857627,-490.0,0.00026988,4]
[366664745,1750393857637,-490.0,0.00026998,4]
[366664746,1750393857646,-490.0,0.00026998,4]
[366664747,1750393857656,-28.04614839,0.00026999,4]
[366664748,1750393857666,-1012.68121,0.00026999,7]
[366664749,1750393857677,-490.0,0.00026999,4]
[366664750,1750393857687,-201.54582299,0.00026999,4]
[366664751,1750393859349,-444.9736425,0.00026887,2]
[366664752,1750393859359,-151.2061675,0.00026987,4]
[366664753,1750394064600,153.77,0.00013699,2]
[366664755,1750394101601,435.0,0.000232,2]
[366664756,1750394172208,202.0,0.00022967,2]
[366664757,1750394346644,45392.95265114,0.0002,2]
[366664773,1750394764113,10000.0,0.000233,2]
[366664774,1750394774878,506.89954924,0.0002,2]
[366664775,1750394783823,3447.6,0.000201,10]
[366664780,1750394891875,202.0,0.0002251,2]
[366664781,1750394971022,500.0,0.000233,2]
[366664782,1750394988035,541.75,0.000233,2]
[366664783,1750395031378,-202.0,0.0002401,4]
[366664784,1750395031388,-150.0,0.00024436,4]
[366664785,1750395031399,-152.60158192,0.00024964,2]
[366664786,1750395031409,-300.0,0.00024978,2]
[366664787,1750395031419,-1200.0,0.00024978,2]
[366664788,1750395031429,-77.05977245,0.00024978,2]
[366664789,1750395031539,-222.94022755,0.00024978,2]
[366664790,1750395031550,-171.85845947,0.00024979,2]
[366664791,1750395031562,-24575.18514968,0.00024979,2]
[366664792,1750395031573,-514.21051163,0.00025,30]
[366664793,1750395031583,-184.0,0.00025,7]
[366664794,1750395031593,-202.0,0.0002551,6]
[366664795,1750395031603,-151.0,0.00025875,2]
[366664796,1750395031613,-151.0,0.00025875,2]
[366664797,1750395031623,-253.77639371,0.00025875,2]
[366664798,1750395031633,-151.0,0.00025875,2]
[366664799,1750395031643,-151.0,0.00025875,2]
[366664800,1750395031653,-188.0,0.00025875,2]
[366664801,1750395031663,-1957.856,0.00025875,2]
[366664802,1750395031674,-169.81644367,0.00025875,2]
[366664803,1750395031684,-207.4,0.00025875,2]
[366664804,1750395031694,-3031.08,0.00025911,2]
[366664805,1750395031705,-162.47,0.00025925,2]
[366664807,1750395031715,-2030.296672,0.0002593,2]
[366664809,1750395031725,-163.34,0.00025934,2]
[366664811,1750395031735,-166.41,0.0002594,2]
[366664813,1750395031745,-5291.89,0.00025954,2]
[366664815,1750395031755,-666.0,0.00025971,2]
[366664817,1750395031765,-1000.0,0.00025971,2]
[366664818,1750395031775,-344.33,0.00025971,120]
[366664819,1750395031785,-200.0,0.00025971,7]
[366664820,1750395031795,-2105.41764886,0.00025985,2]
[366664821,1750395031805,-153.77,0.00026027,2]
[366664822,1750395031815,-251.54599156,0.00026033,2]
[366664823,1750395031825,-2183.31810187,0.0002604,2]
[366664824,1750395031835,-227.92,0.00026078,2]
[366664825,1750395031846,-163.37,0.00026078,2]
[366664826,1750395031855,-316.47557621,0.00026117,2]
[366664827,1750395031865,-600.0,0.00026364,4]
[366664829,1750395031876,-600.0,0.00026364,4]
[366664831,1750395031886,-1000.0,0.000266,2]
[366664833,1750395031896,-191.315097,0.00026633,8]
[366664835,1750395031905,-303.82,0.00026692,2]
[366664837,1750395031915,-658.28887,0.0002673,2]
[366664839,1750395031925,-151.91,0.0002678,2]
[366664841,1750395031934,-166.27,0.00026786,2]
[366664843,1750395031944,-151.91,0.000268,2]
[366664845,1750395031954,-683.70955311,0.00026876,2]
[366664847,1750395031963,-167.19606068,0.00026876,2]
[366664849,1750395031973,-559.93348692,0.00026877,11]
[366664851,1750395031983,-173.27426876,0.00026878,2]
[366664853,1750395031992,-151.91,0.0002688,2]
[366664855,1750395032002,-6763.6423,0.00026883,2]
[366664857,1750395032011,-646.61935977,0.00026887,2]
[366664859,1750395032021,-768.50719794,0.00026888,2]
[366664861,1750395032033,-559.92032875,0.00026888,2]
[366664865,1750395032062,-739.17136539,0.00026888,2]
[366665174,1750395037403,-372.87803105,0.000249,12]
[366665175,1750395037417,-688.19521694,0.000249,12]
[366665176,1750395037428,-1061.07324774,0.00025141,12]
[366665177,1750395037439,-1061.07324774,0.00025383,13]
[366665178,1750395037449,-1061.07324774,0.00025624,13]
[366665179,1750395037459,-1061.07324774,0.00025866,14]
[366665180,1750395037470,-1061.07324774,0.00026107,14]
[366665181,1750395037482,-1061.07324774,0.00026348,14]
[366665182,1750395037492,-1061.07324774,0.0002659,15]
[366665183,1750395037503,-1061.07324774,0.00026831,15]
[366665184,1750395037512,-15030.36610792,0.00026888,2]
[366665185,1750395037525,-1000.0,0.00026888,2]
[366665186,1750395037537,-683.70955308,0.00026899,2]
[366665187,1750395037547,-683.70955308,0.00026921,2]
[366665188,1750395037558,-683.70955308,0.00026944,2]
[366665189,1750395037568,-250.0,0.00026961,2]
[366665190,1750395037578,-200.0,0.00026962,2]
[366665191,1750395037590,-62.50953124,0.00026963,2]
[366665192,1750395037602,-117.87046876,0.00026963,2]
[366665193,1750395037613,-180.38,0.00026963,2]
[366665194,1750395037624,-180.38,0.00026966,2]
[366665195,1750395037634,-180.38,0.00026966,2]
[366665196,1750395037644,-180.38,0.00026966,2]
[366665197,1750395037655,-683.70955308,0.00026966,2]
[366665199,1750395037664,-490.0,0.00026973,4]
[366665200,1750395037675,-516.19,0.00026973,4]
[366665202,1750395037685,-490.0,0.00026973,4]
[366665204,1750395037695,-490.0,0.00026973,4]
[366665206,1750395037704,-490.0,0.00026973,4]
[366665208,1750395037714,-490.0,0.00026973,4]
[366665210,1750395037723,-490.0,0.00026973,4]
[366665212,1750395037733,-490.0,0.00026973,2]
[366665214,1750395037743,-490.0,0.00026973,4]
[366665216,1750395037752,-490.0,0.00026973,4]
[366665218,1750395037762,-490.0,0.00026973,4]
[366665220,1750395037772,-492.1940653,0.00026973,4]
[366665222,1750395037781,-490.0,0.00026973,4]
[366665224,1750395037791,-566.03,0.00026973,4]
[366665226,1750395037800,-500.0,0.00026973,2]
[366665228,1750395037810,-707.75,0.00026973,4]
[366665230,1750395037820,-490.0,0.00026973,4]
[366665232,1750395037830,-490.0,0.00026973,2]
[366665234,1750395037840,-13063.87159612,0.00026973,2]
[366665237,1750395037852,-593.51278797,0.00026973,2]
[366665240,1750395037871,-1291.95,0.00026973,2]
[366665259,1750395038055,-4766.14464213,0.00026973,2]
[366665261,1750395038070,-29705.67986738,0.00026973,2]
[366665262,1750395038079,-5107.25001321,0.00026973,2]
[366665282,1750395039699,-1217.69,0.00026973,4]
[366665283,1750395039709,-490.0,0.00026973,2]
[366665284,1750395039719,-761.76,0.00026973,4]
[366665285,1750395039729,-103619.29955279,0.00026973,2]
[366665286,1750395039738,-3369.27165332,0.00026973,2]
[366665287,1750395039748,-500.0,0.00026975,2]
[366665288,1750395039757,-206.91806862,0.00026975,2]
[366665289,1750395039767,-464.47878948,0.00026975,2]
[366665290,1750395039776,-270.50237871,0.00026975,2]
[366665291,1750395039786,-264.35489892,0.00026975,2]
[366665292,1750395039796,-490.0,0.00026976,4]
[366665293,1750395039806,-490.0,0.00026976,4]
[366665294,1750395039815,-490.0,0.00026976,4]
[366665295,1750395039825,-495.74047125,0.00026976,4]
[366665296,1750395039834,-490.0,0.00026976,4]
[366665297,1750395039844,-490.0,0.00026976,4]
[366665298,1750395039854,-490.0,0.00026976,4]
[366665299,1750395039863,-490.0,0.00026976,4]
[366665300,1750395039873,-490.0,0.00026976,4]
[366665301,1750395039882,-568.48,0.00026976,4]
[366665302,1750395039892,-490.0,0.00026976,4]
[366665303,1750395039901,-490.0,0.00026976,4]
[366665304,1750395039911,-724.4,0.00026976,4]
[366665305,1750395039920,-490.0,0.00026976,4]
[366665306,1750395039930,-490.0,0.00026976,4]
[366665307,1750395039940,-661.68,0.00026976,4]
[366665308,1750395039950,-490.0,0.00026976,4]
[366665309,1750395039962,-490.0,0.00026976,4]
[366665310,1750395039974,-490.0,0.00026976,4]
[366665311,1750395039985,-490.0,0.00026976,4]
[366665312,1750395039994,-490.0,0.00026976,4]
[366665313,1750395040004,-490.0,0.00026976,4]
[366665314,1750395040014,-490.0,0.00026976,4]
[366665315,1750395040024,-490.0,0.00026976,4]
[366665316,1750395040034,-490.0,0.00026976,4]
[366665317,1750395040043,-490.0,0.00026976,4]
[366665318,1750395040053,-490.0,0.00026976,4]
[366665319,1750395040063,-490.0,0.00026976,4]
[366665320,1750395040073,-490.0,0.00026976,4]
[366665321,1750395040083,-764.52,0.00026976,4]
[366665322,1750395040092,-490.0,0.00026976,4]
[366665323,1750395040103,-490.0,0.00026976,4]
[366665324,1750395040113,-490.0,0.00026976,4]
[366665325,1750395040123,-490.0,0.00026976,4]
[366665326,1750395040132,-490.0,0.00026976,4]
[366665327,1750395040142,-490.0,0.00026976,4]
[366665328,1750395040153,-490.0,0.00026976,4]
[366665329,1750395040163,-490.0,0.00026976,4]
[366665330,1750395040173,-490.0,0.00026976,4]
[366665331,1750395040185,-490.0,0.00026976,4]
[366665332,1750395040195,-490.0,0.00026976,4]
[366665333,1750395040205,-998.27,0.00026976,4]
[366665334,1750395040215,-490.0,0.00026976,4]
[366665335,1750395040225,-490.0,0.00026976,4]
[366665336,1750395040234,-490.0,0.00026976,4]
[366665337,1750395040244,-3042.410349,0.00026976,4]
[366665338,1750395040254,-406.75311611,0.00026976,4]
[366665339,1750395040264,-490.0,0.00026976,4]
[366665340,1750395040274,-490.0,0.00026976,4]
[366665341,1750395040284,-490.0,0.00026976,4]
[366665342,1750395040294,-604.14,0.00026976,4]
[366665343,1750395040304,-304.67711205,0.00026976,4]
[366665344,1750395040315,-4758.72,0.00026976,4]
[366665345,1750395040326,-490.0,0.00026976,4]
[366665346,1750395040336,-490.0,0.00026976,4]
[366665347,1750395040347,-490.0,0.00026976,4]
[366665348,1750395040359,-830.68,0.00026976,4]
[366665349,1750395040371,-490.0,0.00026976,4]
[366665350,1750395040381,-490.0,0.00026976,4]
[366665351,1750395040391,-490.0,0.00026976,4]
[366665352,1750395040403,-323.05,0.00026976,4]
[366665353,1750395040413,-796.43,0.00026976,4]
[366665354,1750395040424,-490.0,0.00026976,4]
[366665355,1750395040434,-490.0,0.00026976,4]
[366665356,1750395040444,-798.75,0.00026976,4]
[366665357,1750395040455,-490.0,0.00026976,4]
[366665358,1750395040464,-490.0,0.00026976,4]
[366665359,1750395040474,-490.0,0.00026976,4]
[366665360,1750395040484,-490.0,0.00026976,4]
[366665361,1750395040494,-498.27653109,0.00026976,4]
[366665362,1750395040504,-1609.638155,0.00026976,4]
[366665363,1750395040514,-159.070126,0.00026976,4]
[366665364,1750395040523,-615.64,0.00026976,4]
[366665365,1750395040533,-917.86,0.00026976,4]
[366665366,1750395040543,-490.0,0.00026976,4]
[366665367,1750395040552,-150.235679,0.00026976,4]
[366665368,1750395040562,-490.0,0.00026976,4]
[366665369,1750395040574,-490.0,0.00026976,4]
[366665370,1750395040585,-490.0,0.00026976,4]
[366665371,1750395040595,-490.0,0.00026976,4]
[366665372,1750395040605,-915.36,0.00026976,4]
[366665373,1750395040614,-490.0,0.00026976,4]
[366665374,1750395040626,-490.0,0.00026976,4]
[366665375,1750395040636,-490.0,0.00026976,4]
[366665376,1750395040647,-490.0,0.00026976,4]
[366665377,1750395040656,-490.0,0.00026976,4]
[366665378,1750395040665,-490.0,0.00026976,4]
[366665379,1750395040675,-498.03,0.00026976,4]
[366665380,1750395040684,-490.0,0.00026976,4]
[366665381,1750395040694,-490.0,0.00026976,4]
[366665382,1750395040703,-825.78,0.00026976,4]
[366665383,1750395040714,-490.0,0.00026976,4]
[366665384,1750395040726,-490.0,0.00026976,4]
[366665385,1750395040736,-4238.88,0.00026976,4]
[366665386,1750395040747,-490.0,0.00026976,4]
[366665387,1750395040757,-490.0,0.00026976,4]
[366665388,1750395040767,-549.88,0.00026976,4]
[366665389,1750395040778,-684.26,0.00026976,4]
[366665390,1750395040788,-490.0,0.00026976,4]
[366665391,1750395040797,-490.0,0.00026976,4]